bitfinex-derivatives/quotes_ETHF0:USTF0_20260201
["timestamp","ask_amount","ask_price","bid_price","bid_amount"]
[1769936372110,4.95003185,2413.1,2412.6,3.24614278]
[1769936372411,4.27934207,2413.5,2412.7,0.08372621]
[1769936372907,4.27934207,2413.5,2412.8,3.24614278]
[1769936373111,4.27934207,2413.5,2412.3,3.24614278]
[1769936373906,4.27934207,2413.5,2412.4,4.668]
[1769936374111,4.27934207,2413.5,2412.4,8.816]
[1769936374412,4.27934207,2413.5,2412.5,3.24614278]
[1769936375016,4.27934207,2413.5,2412.5,7.91414278]
[1769936376617,37.16352176,2413.4,2412.5,7.91414278]
[1769936376914,4.07194207,2413.3,2412.5,7.91414278]
[1769936381014,41.4439408,2413.5,2412.5,7.91414278]
[1769936381313,4.07301904,2413.5,2412.5,7.91414278]
[1769936382115,4.07301904,2413.5,2412.6,0.06965188]
[1769936382314,41.2365408,2413.5,2412.6,0.06965188]
[1769936382514,41.2365408,2413.5,2412.7,3.31579466]
[1769936382717,41.2365408,2413.5,2412.8,0.06965188]
[1769936382906,4.0381931,2413.4,2412.8,0.06965188]
[1769936383213,4.0381931,2413.4,2412.9,3.24614278]
[1769936384115,4.0381931,2413.4,2413.0,3.24614278]
[1769936384316,37.16352176,2413.5,2413.1,0.06864133]
[1769936384617,0.00528522,2413.7,2413.1,0.06864133]
[1769936384816,0.00528522,2413.7,2413.2,3.31478411]
[1769936385019,4.0518584,2413.7,2412.8,3.24614278]
[1769936385314,4.0518584,2413.7,2412.9,0.06864133]
[1769936385715,4.0518584,2413.7,2413.0,3.24614278]
[1769936387213,4.0518584,2413.7,2413.0,3.2945889]
[1769936387419,4.0518584,2413.7,2413.1,0.04844612]
[1769936387822,4.0518584,2413.7,2413.2,3.2945889]
[1769936388120,37.16352176,2414.1,2413.4,0.00854254]
[1769936388311,4.06791603,2414.0,2412.9,7.18014833]
[1769936388516,4.06791603,2413.9,2412.9,3.25468532]
[1769936389122,4.07259462,2413.9,2412.9,3.25811919]
[1769936389711,4.07259462,2413.9,2413.0,0.00854254]
[1769936389921,4.07259462,2413.9,2413.1,3.24614278]
[1769936392615,4.07259462,2413.9,2413.2,3.24614278]
[1769936392816,37.16352176,2413.7,2413.0,3.24614278]
[1769936393022,4.04657318,2413.6,2413.0,3.24614278]
[1769936402227,37.16352176,2413.7,2413.1,0.0077831]
[1769936402529,41.23181751,2413.8,2413.1,0.0077831]
[1769936402727,4.06829575,2413.7,2413.2,3.24614278]
[1769936402928,4.06829575,2413.7,2413.0,3.24614278]
[1769936403225,4.06829575,2413.7,2413.0,3.25392588]
[1769936407332,0.00467859,2413.9,2413.2,0.01760565]
[1769936407528,4.06367464,2414.1,2413.4,0.01760565]
[1769936407921,4.06367464,2414.1,2413.3,4.674]
[1769936408128,4.06367464,2414.1,2413.4,3.24614278]
[1769936408334,4.07247747,2414.3,2413.4,3.24614278]
[1769936408530,4.07247747,2414.3,2413.4,4.83816817]
[1769936408531,4.07680924,2414.3,2413.4,4.83816817]
[1769936409633,4.07680924,2414.3,2413.4,7.31734063]
[1769936411832,4.07680924,2414.3,2413.5,2.47917246]
[1769936412028,4.07680924,2414.3,2413.6,0.17944411]
[1769936412432,4.0520403,2414.5,2413.7,5.01761228]
[1769936413234,4.0520403,2414.5,2413.7,7.49678474]
[1769936413438,4.05645886,2414.5,2413.8,0.17944411]
[1769936413835,4.05645886,2414.5,2413.9,3.24614278]
[1769936414334,4.05645886,2414.5,2414.0,6.28202539]
[1769936414536,2.67546922,2414.5,2414.0,6.28202539]
[1769936414737,2.67546922,2414.5,2414.1,3.24614278]
[1769936415338,2.67546922,2414.5,2413.8,6.09064498]
[1769936415538,2.67546922,2414.5,2413.3,3.93465699]
[1769936415539,4.26749461,2414.5,2413.3,3.93465699]
[1769936416544,4.26749461,2414.5,2413.1,3.93465699]
[1769936417039,4.26749461,2414.5,2413.2,4.642]
[1769936417643,4.26749461,2414.5,2413.3,3.93465699]
[1769936417941,4.0520403,2414.2,2413.0,7.48671998]
[1769936418140,4.0520403,2413.6,2412.1,3.93465699]
[1769936419039,4.0520403,2413.6,2412.1,3.93767904]
[1769936420748,4.0520403,2413.3,2412.1,3.93767904]
[1769936420948,4.0520403,2413.0,2412.1,0.00302205]
[1769936422443,4.0520403,2412.7,2411.4,3.93465699]
[1769936422843,4.0520403,2412.7,2411.5,3.93465699]
[1769936423347,4.05558361,2412.7,2411.5,3.93838776]
[1769936424447,4.05558361,2412.7,2411.6,3.93465699]
[1769936424646,4.05558361,2412.7,2411.7,3.93465699]
[1769936425646,4.05558361,2412.7,2411.8,3.93465699]
[1769936426549,4.05558361,2412.7,2411.9,3.93465699]
[1769936427343,4.05558361,2412.7,2411.9,8.07705699]
[1769936427541,4.05558361,2412.7,2412.0,3.93465699]
[1769936428149,4.05558361,2412.7,2412.0,8.07705699]
[1769936428344,4.05558361,2412.7,2412.0,4.1424]
[1769936428544,4.05558361,2412.7,2411.5,3.93838776]
[1769936428753,4.0520403,2412.4,2411.5,3.93838776]
[1769936429152,4.0520403,2412.4,2411.6,3.93465699]
[1769936429551,4.0520403,2412.4,2411.5,0.00373077]
[1769936429750,4.0520403,2412.4,2411.5,4.14613077]
[1769936430152,4.0520403,2412.4,2411.5,8.08078776]
[1769936430353,4.0520403,2412.4,2411.5,0.00373077]
[1769936436463,4.0520403,2412.4,2411.6,4.1424]
[1769936436765,4.0520403,2412.4,2411.7,4.1424]
[1769936437061,4.0520403,2412.4,2411.6,4.1424]
[1769936437552,4.2595403,2412.4,2411.5,0.00373077]
[1769936439855,4.2595403,2412.4,2410.3,2.506]
[1769936439856,3.90290826,2410.9,2409.3,3.87525852]
[1769936440063,3.90290826,2410.6,2409.3,3.87525852]
[1769936440252,4.11055826,2410.6,2409.3,4.1424]
[1769936440456,3.90290826,2410.3,2409.0,3.87525852]
[1769936440861,3.90741506,2410.3,2409.4,3.87525852]
[1769936441154,3.90741506,2410.3,2409.5,3.87525852]
[1769936441359,3.90741506,2410.3,2409.3,3.87525852]
[1769936441554,3.90741506,2410.3,2409.3,8.01765852]
[1769936441752,3.90741506,2410.3,2409.5,4.1424]
[1769936441952,3.90741506,2410.3,2409.4,4.1424]
[1769936442154,3.90290826,2410.1,2409.0,0.00513359]
[1769936442554,3.90290826,2410.1,2409.1,4.1424]
[1769936443364,3.90290826,2410.1,2409.3,4.1424]
[1769936443566,3.90290826,2410.1,2409.4,4.1424]
[1769936443760,3.90290826,2410.1,2409.3,4.1424]
[1769936444060,3.90290826,2410.1,2409.4,4.1424]
[1769936444458,3.90290826,2410.1,2409.5,4.1424]
[1769936444657,3.90290826,2410.1,2409.4,4.1424]
[1769936445162,3.90290826,2410.1,2409.5,4.1424]
[1769936445366,3.90290826,2410.1,2409.4,4.1424]
[1769936445758,3.90290826,2410.1,2409.5,4.1424]
[1769936445964,3.90290826,2410.1,2409.4,4.1424]
[1769936446466,3.90290826,2410.1,2409.5,4.1424]
[1769936446661,3.90290826,2410.1,2409.4,4.1424]
[1769936447063,3.90290826,2410.1,2409.5,4.1424]
[1769936447264,3.90290826,2410.1,2409.0,3.78880908]
[1769936448574,3.90290826,2410.1,2409.0,0.00513359]
[1769936449478,6.33790826,2410.1,2409.0,0.00513359]
[1769936449779,2.60739094,2410.0,2409.0,0.00513359]
[1769936450383,2.23346631,2409.8,2409.0,0.00513359]
[1769936450774,0.20771,2409.9,2409.0,3.78880908]
[1769936451476,2.23346631,2410.1,2409.0,3.78880908]
[1769936454683,0.0045068,2410.3,2409.0,3.78880908]
[1769936454985,0.00148475,2410.3,2409.2,3.78367549]
[1769936455280,0.00148475,2410.3,2409.4,3.78367549]
[1769936460680,2.41453735,2410.3,2409.0,3.78880908]
[1769936460880,2.4130526,2409.9,2408.7,3.78367549]
[1769936461678,2.4130526,2409.7,2408.7,3.78367549]
[1769936462184,2.4130526,2409.7,2408.7,3.78750324]
[1769936463085,2.4130526,2409.7,2408.7,0.00382775]
[1769936465290,2.40622811,2408.5,2407.2,3.69854221]
[1769936465484,4.84122811,2408.5,2407.1,3.78367549]
[1769936465893,2.40622811,2408.5,2407.1,3.78367549]
[1769936466082,2.40622811,2408.5,2407.2,3.78367549]
[1769936466288,0.00363923,2408.5,2407.2,3.78896509]
[1769936466487,0.00363923,2408.5,2407.4,3.78367549]
[1769936466688,2.39442445,2408.5,2407.4,3.78367549]
[1769936469401,2.39442445,2408.5,2407.2,3.7835891]
[1769936469591,2.60225445,2408.5,2407.2,0.0052896]
[1769936470392,2.64136811,2408.0,2406.5,3.7782995]
[1769936470599,2.43348811,2407.8,2406.5,3.7782995]
[1769936470995,2.43348811,2407.8,2406.6,3.7782995]
[1769936471190,0.20788,2408.0,2406.6,3.7782995]
[1769936471191,2.43348811,2408.0,2406.6,3.7782995]
[1769936471390,2.43348811,2408.0,2406.8,3.7782995]
[1769936472294,2.43348811,2408.0,2406.9,3.7782995]
[1769936472597,2.44218173,2407.8,2406.6,3.78173592]
[1769936473795,2.44218173,2407.8,2406.7,3.7782995]
[1769936473988,2.44218173,2407.8,2406.8,3.7782995]
[1769936474793,2.44218173,2407.8,2406.9,3.7782995]
[1769936476390,2.48181155,2408.1,2406.9,3.69040045]
[1769936476589,2.48181155,2408.4,2407.2,3.7782995]
[1769936476999,2.68967155,2408.2,2407.2,3.7782995]
[1769936477594,2.68967155,2408.2,2407.2,7.46869995]
[1769936477894,2.68967155,2408.2,2407.2,3.7782995]
[1769936478199,2.68967155,2408.2,2406.7,3.7782995]
[1769936478390,2.68967155,2408.2,2406.8,3.7782995]
[1769936478590,2.68967155,2408.2,2406.9,3.7782995]
[1769936479096,2.68967155,2408.2,2407.0,3.7782995]
[1769936479290,2.68967155,2408.2,2407.2,3.7782995]
[1769936479495,2.68967155,2408.2,2407.3,3.7782995]
[1769936479695,2.68967155,2408.2,2407.4,3.7782995]
[1769936480801,2.68967155,2408.2,2407.4,7.46869995]
[1769936481402,0.20786,2408.2,2407.6,7.46869995]
[1769936481602,0.20786,2408.2,2407.6,3.7782995]
[1769936481791,2.65878517,2408.2,2407.7,0.78787528]
[1769936481992,0.23627345,2408.1,2407.1,4.0786791]
[1769936482191,0.00363923,2408.5,2407.1,4.0786791]
[1769936482599,0.02840345,2408.4,2407.1,4.0786791]
[1769936482801,0.00363923,2408.5,2407.1,4.0786791]
[1769936483102,0.00363923,2408.5,2407.1,6.5156791]
[1769936483301,0.00363923,2408.5,2407.2,4.06447737]
[1769936483899,4.156,2408.9,2407.4,4.27240737]
[1769936484303,0.20773,2409.7,2408.0,4.06814374]
[1769936484600,0.02107071,2410.2,2408.2,4.06814374]
[1769936484997,0.02440942,2410.2,2408.2,4.06814374]
[1769936485401,0.00333871,2410.2,2408.3,4.06814374]
[1769936485602,0.00333871,2410.2,2408.3,4.07122417]
[1769936486304,0.00333871,2410.2,2408.4,4.01536133]
[1769936487303,0.00333871,2410.2,2408.5,4.01536133]
[1769936489205,0.00333871,2410.2,2408.5,6.47733987]
[1769936489396,0.00333871,2410.2,2408.5,4.01536133]
[1769936489604,0.13348564,2410.1,2408.5,6.45236133]
[1769936489804,0.21102871,2410.2,2408.6,4.01193628]
[1769936490305,0.33170139,2410.2,2408.6,4.01193628]
[1769936490703,0.00333871,2410.2,2408.6,4.01193628]
[1769936491404,0.00333871,2410.2,2408.6,6.68173482]
[1769936491604,0.00333871,2410.2,2408.7,4.01834276]
[1769936492004,0.12941003,2410.2,2408.9,4.01834276]
[1769936496101,0.12941003,2410.2,2408.9,6.52434276]
[1769936496303,0.12941003,2410.2,2409.0,4.00377964]
[1769936498905,0.00333871,2410.2,2409.0,4.00377964]
[1769936501911,0.21102871,2410.2,2409.1,4.07748341]
[1769936508813,0.00333871,2410.2,2409.1,4.07748341]
[1769936513218,0.00333871,2410.2,2409.1,6.53946195]
[1769936513413,0.00333871,2410.2,2409.2,4.07723095]
[1769936513815,0.00333871,2410.2,2409.3,4.07723095]
[1769936514917,0.00333871,2410.2,2409.5,4.07723095]
[1769936515716,0.00333871,2410.2,2409.6,4.07723095]
[1769936520931,0.29866012,2410.2,2409.3,2.46197854]
[1769936521128,0.00333871,2410.2,2409.1,2.46197854]
[1769936521327,0.00333871,2410.2,2409.2,3.88022422]
[1769936521532,0.00333871,2410.2,2409.1,2.46197854]
[1769936521735,0.00333871,2410.2,2409.2,3.87985218]
[1769936521931,0.00333871,2410.2,2409.2,2.46197854]
[1769936522130,0.00333871,2410.2,2409.1,2.46197854]
[1769936522326,0.29676064,2410.2,2409.2,3.8647895]
[1769936522532,0.29676064,2410.2,2409.1,2.46197854]
[1769936523039,0.29676064,2410.2,2409.2,3.93051998]
[1769936525332,0.00333871,2410.2,2409.2,3.93051998]
[1769936528240,0.21102871,2410.2,2409.2,3.93051998]
[1769936528538,0.21102871,2410.2,2409.1,3.53429602]
[1769936528539,0.31516335,2409.8,2409.1,3.53429602]
[1769936528740,0.00333871,2410.2,2408.6,6.27396019]
[1769936528741,1.16644335,2409.7,2408.6,6.27396019]
[1769936528945,0.20777,2409.3,2408.3,2.46505897]
[1769936529136,0.20777,2409.3,2408.3,3.81506208]
[1769936529336,0.20777,2409.3,2408.3,0.00308043]
[1769936530837,0.20777,2409.3,2408.4,3.96135602]
[1769936531238,2.64372,2409.8,2408.4,3.96135602]
[1769936532639,0.20775,2409.5,2408.4,3.96135602]
[1769936533737,2.436,2409.8,2408.4,3.96135602]
[1769936533940,2.436,2409.8,2408.5,3.96135602]
[1769936535444,0.20775,2409.5,2408.5,3.96135602]
[1769936536243,0.20776,2409.4,2408.5,3.96135602]
[1769936536439,0.20776,2409.3,2408.5,3.96135602]
[1769936537945,0.20777,2409.2,2408.5,3.96135602]
[1769936538141,1.50367387,2409.3,2408.3,0.00308043]
[1769936538347,0.20779,2409.0,2408.3,0.00308043]
[1769936538644,0.20779,2409.0,2407.5,12.59997854]
[1769936538838,0.20779,2409.0,2407.5,2.46197854]
[1769936539247,0.20781,2408.8,2407.4,4.89797854]
[1769936539446,0.20781,2408.8,2407.4,2.44052963]
[1769936539642,0.20781,2408.8,2407.4,0.00452963]
[1769936540238,0.20781,2408.8,2407.5,3.96135602]
[1769936541043,1.50518567,2408.7,2407.5,3.96135602]
[1769936541243,0.20783,2408.6,2407.5,3.96135602]
[1769936547456,2.436,2409.0,2407.5,3.96135602]
[1769936547657,0.2078,2408.9,2407.5,3.96135602]
[1769936547860,0.20781,2408.8,2407.5,3.96135602]
[1769936549460,0.20777,2409.3,2407.6,6.46735602]
[1769936549653,0.20777,2409.3,2407.8,3.96135602]
[1769936550852,0.20777,2409.3,2407.9,3.96135602]
[1769936551758,0.20777,2409.3,2407.9,6.42333456]
[1769936551957,0.20777,2409.3,2408.0,3.96135602]
[1769936552154,0.20772,2409.8,2408.2,3.96135602]
[1769936552357,0.20772,2409.8,2408.4,3.96135602]
[1769936553253,0.20772,2409.8,2408.6,3.96135602]
[1769936555868,1.95941943,2409.8,2408.6,3.96135602]
[1769936561059,1.96334474,2409.4,2408.6,3.96135602]
[1769936561263,0.20776,2409.4,2408.6,3.96135602]
[1769936564967,2.64471,2410.0,2408.6,3.96135602]
[1769936571779,0.20771,2409.9,2408.6,3.96135602]
[1769936578489,0.20771,2409.9,2408.7,3.88500244]
[1769936579387,0.20771,2409.9,2408.7,6.34698098]
[1769936579588,0.20771,2409.9,2408.8,3.88500244]
[1769936580384,8.57236122,2410.0,2408.8,3.88500244]
[1769936580584,6.13869993,2410.2,2409.0,3.88500244]
[1769936581191,0.00333871,2410.2,2409.1,3.88500244]
[1769936581386,0.00333871,2410.2,2409.1,3.88921265]
[1769936581891,0.00333871,2410.2,2409.2,10.21053561]
[1769936582191,0.00333871,2410.2,2409.3,3.88500244]
[1769936591493,1.93366561,2410.2,2409.1,3.68842866]
[1769936591689,0.00333871,2410.2,2409.1,3.68842866]
[1769936600496,0.00333871,2410.2,2409.2,3.68421845]
[1769936603299,0.00333871,2410.2,2409.2,7.48888547]
[1769936603597,0.00333871,2410.2,2409.3,3.68421845]
[1769936609406,0.00333871,2410.2,2409.4,3.68421845]
[1769936610108,0.00333871,2410.2,2409.4,7.61759047]
[1769936610307,4.82,2410.5,2409.5,3.68421845]
[1769936610897,6.60909616,2410.5,2409.5,3.68421845]
[1769936611406,12.74908491,2410.5,2409.5,3.68421845]
[1769936613005,6.61372369,2410.5,2409.5,3.68421845]
[1769936613205,12.74908491,2410.5,2409.5,3.68421845]
[1769936614703,6.61372369,2410.5,2409.5,3.68421845]
[1769936615107,12.74908491,2410.5,2409.5,3.68421845]
[1769936616010,10.95998875,2410.5,2409.5,3.68421845]
[1769936616206,4.82462753,2410.5,2409.5,3.68421845]
[1769936616604,10.95998875,2410.5,2409.5,3.68421845]
[1769936616911,12.70714784,2410.5,2409.5,3.68421845]
[1769936617709,14.30388518,2410.5,2409.5,3.68421845]
[1769936620713,1.754095,2410.4,2409.5,3.68421845]
[1769936626219,6.42136487,2410.5,2409.5,3.68421845]
[1769936628919,4.153,2411.0,2409.7,4.00984081]
[1769936629214,4.153,2411.0,2409.9,4.00984081]
[1769936629410,4.153,2411.0,2410.0,4.00984081]
[1769936629614,4.153,2411.0,2410.1,4.00984081]
[1769936629816,1.59673734,2411.4,2410.3,4.00984081]
[1769936630013,1.60189043,2411.4,2410.3,4.00984081]
[1769936630318,1.80429734,2411.7,2410.4,4.00984081]
[1769936630717,1.80429734,2411.7,2410.5,4.00984081]
[1769936631319,0.21091603,2411.7,2410.5,4.00984081]
[1769936632817,1.59673734,2412.0,2410.7,4.00984081]
[1769936633114,1.80424734,2412.3,2410.8,4.00984081]
[1769936633314,1.80424734,2412.3,2410.9,4.00984081]
[1769936634020,1.80790629,2412.3,2410.9,4.0137071]
[1769936636123,0.00365895,2412.3,2410.9,4.0137071]
[1769936636414,1.60039629,2412.3,2410.9,4.0137071]
[1769936637215,1.59673734,2412.6,2411.1,4.00984081]
[1769936637415,4.07061716,2412.5,2411.3,4.00984081]
[1769936638319,4.07494419,2412.5,2411.3,4.00984081]
[1769936640522,0.00432703,2412.5,2411.3,4.00984081]
[1769936640923,1.59673734,2412.3,2411.3,4.00984081]
[1769936643416,1.59673734,2412.0,2411.3,4.00984081]
[1769936643822,1.59673734,2412.3,2411.3,4.00984081]
[1769936644523,0.00432703,2412.5,2411.3,4.00984081]
[1769936644920,0.00432703,2412.5,2411.4,4.00984081]
[1769936645128,4.152,2412.7,2411.6,4.00984081]
[1769936645625,1.59673734,2412.9,2411.6,4.00984081]
[1769936645827,1.59673734,2413.2,2411.7,4.00984081]
[1769936646224,1.59964901,2413.2,2411.7,4.00984081]
[1769936647024,1.59964901,2413.2,2412.0,4.00984081]
[1769936647025,0.00291167,2413.2,2412.0,4.00984081]
[1769936647427,1.59673734,2413.8,2412.3,3.68709441]
[1769936647623,1.59673734,2413.8,2412.5,3.68709441]
[1769936648125,5.36190029,2414.1,2412.6,3.68709441]
[1769936648429,0.00349369,2414.1,2412.9,3.68709441]
[1769936648630,1.60023103,2414.1,2412.9,3.68709441]
[1769936648828,5.36190029,2413.8,2412.9,3.68709441]
[1769936649031,0.00349369,2414.1,2412.9,3.68709441]
[1769936649032,3.76516295,2414.0,2412.9,3.68709441]
[1769936649726,5.36190029,2413.8,2412.9,3.68709441]
[1769936650125,3.76516295,2414.0,2412.9,3.68709441]
[1769936650430,0.00349369,2414.1,2412.9,3.68709441]
[1769936651024,0.00349369,2414.1,2413.2,3.68709441]
[1769936651225,5.36190029,2414.4,2413.2,3.68709441]
[1769936652130,5.36503895,2414.4,2413.2,3.68709441]
[1769936652428,0.00313866,2414.4,2413.5,3.68709441]
[1769936652630,3.76516295,2415.1,2413.6,3.68709441]
[1769936653331,1.59673734,2415.2,2413.8,3.68709441]
[1769936653731,1.6012876,2415.2,2413.8,3.68709441]
[1769936655035,0.00455026,2415.2,2414.1,3.68709441]
[1769936655230,3.76516295,2416.1,2414.9,1.59673734]
[1769936655435,3.76516295,2416.1,2415.0,3.68709441]
[1769936655729,3.76516295,2416.4,2415.0,3.68709441]
[1769936655931,3.76516295,2416.1,2415.0,3.68709441]
[1769936656330,3.76516295,2416.1,2415.0,3.69153041]
[1769936656331,3.77045523,2416.1,2415.0,3.69153041]
[1769936657531,0.00529228,2416.1,2415.0,3.69153041]
[1769936658635,0.00529228,2416.1,2415.2,3.68709441]
[1769936659141,3.76516295,2417.0,2415.2,3.68709441]
[1769936659937,3.76948585,2417.0,2415.2,3.68709441]
[1769936662035,3.76516295,2416.8,2415.2,3.68709441]
[1769936662436,3.76948585,2417.0,2415.2,3.89434441]
[1769936663939,0.0043229,2417.0,2415.2,3.89434441]
[1769936666435,3.76948585,2417.0,2415.2,3.89434441]
[1769936667234,0.0043229,2417.0,2415.2,3.89434441]
[1769936667841,3.76948585,2417.0,2415.2,3.89434441]
[1769936668042,3.76948585,2417.0,2415.4,3.68709441]
[1769936668844,3.76948585,2417.0,2415.5,3.68709441]
[1769936673145,3.76516295,2416.8,2415.5,3.68709441]
[1769936677246,3.97228295,2416.8,2415.5,3.68709441]
[1769936677548,0.0043229,2417.0,2415.5,3.68709441]
[1769936677549,3.73022187,2416.4,2415.5,3.68709441]
[1769936677749,3.73022187,2416.4,2415.1,3.84386336]
[1769936681046,0.20717,2416.2,2415.1,3.84386336]
[1769936681244,3.73022187,2416.1,2415.1,3.84386336]
[1769936683247,3.73022187,2415.8,2415.0,0.004436]
[1769936684255,3.73022187,2415.8,2414.5,4.03811314]
[1769936684460,4.19071092,2415.5,2414.3,4.03811314]
[1769936685351,4.19071092,2415.5,2414.3,4.04146331]
[1769936685555,3.98348092,2415.3,2414.3,0.00335017]
[1769936685757,4.19606484,2415.3,2414.3,0.00335017]
[1769936686660,0.00533392,2415.3,2414.3,4.04146331]
[1769936690866,3.98348092,2416.1,2414.7,4.03811314]
[1769936691464,3.98348092,2416.1,2414.8,4.03811314]
[1769936691861,3.98646567,2416.1,2414.8,4.03811314]
[1769936692865,3.98348092,2415.8,2414.6,4.03811314]
[1769936694467,0.2072,2415.9,2414.6,4.03811314]
[1769936694962,3.98646567,2416.1,2414.6,4.03811314]
[1769936695168,0.00298475,2416.1,2415.1,4.03811314]
[1769936695758,0.00298475,2416.1,2415.1,8.58011314]
[1769936695966,0.00298475,2416.1,2415.2,4.03811314]
[1769936697366,3.98348092,2416.0,2415.2,4.03811314]
[1769936697870,0.00298475,2416.1,2415.2,4.03811314]
[1769936700369,3.98348092,2416.9,2415.2,4.03811314]
[1769936700575,3.98348092,2416.9,2415.5,4.03811314]
[1769936701171,0.20709,2417.1,2415.6,4.03811314]
[1769936701371,0.21170998,2417.1,2415.6,4.03811314]
[1769936701571,4.1951909,2417.1,2415.6,4.03811314]
[1769936702668,3.98348092,2416.9,2415.6,4.03811314]
[1769936702973,3.98348092,2416.5,2415.3,4.03811314]
[1769936703164,0.20714,2416.6,2415.3,4.03811314]
[1769936703772,4.19062092,2416.6,2415.3,4.03811314]
[1769936706974,0.00461998,2417.1,2415.4,4.03811314]
[1769936707177,0.00461998,2417.1,2415.8,3.98545884]
[1769936707473,0.20703,2417.8,2416.2,3.98545884]
[1769936707666,11.5622213,2418.4,2416.4,3.98545884]
[1769936707667,3.89815308,2417.7,2416.4,3.98545884]
[1769936708574,3.90266968,2417.7,2416.4,3.98850369]
[1769936709978,3.69111308,2417.5,2416.4,3.98850369]
[1769936710179,3.69111308,2417.5,2416.4,0.00304485]
[1769936710576,3.89817308,2417.5,2416.4,0.00304485]
[1769936712986,3.69111308,2417.5,2416.4,3.98850369]
[1769936713177,3.69562968,2417.7,2416.4,3.98850369]
[1769936713578,3.90266968,2417.7,2416.4,3.98850369]
[1769936713775,3.69111308,2417.5,2416.4,0.00304485]
[1769936715281,3.89817308,2417.5,2416.4,0.00304485]
[1769936715778,3.89817308,2417.5,2416.4,3.98850369]
[1769936717078,0.0045166,2417.7,2416.4,3.98850369]
[1769936717589,0.0045166,2417.7,2416.5,3.98545884]
[1769936720186,3.89812308,2418.1,2416.6,3.98545884]
[1769936720885,3.69111308,2418.4,2416.8,3.98545884]
[1769936721088,3.69111308,2418.4,2416.9,3.98545884]
[1769936721386,0.00474839,2418.4,2417.1,3.98545884]
[1769936722178,0.00474839,2418.4,2417.1,4.19254884]
[1769936722381,3.69111308,2419.0,2417.2,3.98545884]
[1769936722586,8.83380865,2420.0,2417.6,3.98545884]
[1769936722783,3.89795308,2420.1,2418.3,3.98545884]
[1769936722984,3.89795308,2420.1,2418.4,3.98545884]
[1769936723182,3.69111308,2420.5,2418.4,3.98545884]
[1769936723386,3.69485491,2420.5,2418.7,3.98545884]
[1769936723688,0.00374183,2420.5,2418.9,3.98545884]
[1769936724085,4.141,2421.5,2419.6,3.98545884]
[1769936724287,3.69111308,2422.0,2419.8,3.98545884]
[1769936724487,3.89778308,2422.0,2420.0,3.98545884]
[1769936724690,3.69111308,2421.6,2420.1,3.98545884]
[1769936724989,3.89802308,2421.6,2420.1,3.98545884]
[1769936725189,3.69111308,2421.0,2420.1,3.99049929]
[1769936725489,3.89802308,2421.0,2420.1,0.00504045]
[1769936725691,0.20691,2420.7,2420.1,0.00504045]
[1769936725888,3.69111308,2421.0,2419.8,3.98545884]
[1769936726092,0.20691,2420.5,2419.3,3.98545884]
[1769936726292,3.69111308,2420.6,2419.3,3.98545884]
[1769936726489,0.20691,2420.5,2419.3,3.98545884]
[1769936727188,0.20691,2420.5,2419.3,3.98967726]
[1769936727693,0.20675,2421.1,2419.3,3.98967726]
[1769936727993,3.89802308,2421.0,2419.3,3.98967726]
[1769936728997,3.69111308,2420.8,2419.3,3.98967726]
[1769936729495,3.89802308,2420.8,2419.3,3.98967726]
[1769936729696,0.20691,2420.7,2419.3,3.98967726]
[1769936731090,3.89786308,2421.1,2419.3,3.98967726]
[1769936731290,4.10477308,2421.1,2419.3,3.98967726]
[1769936731486,0.20691,2421.0,2419.3,3.98967726]
[1769936731697,3.89802308,2421.0,2419.3,3.98967726]
[1769936732190,3.69111308,2421.0,2419.3,3.98967726]
[1769936732387,0.20675,2421.1,2419.3,3.98967726]
[1769936732599,3.69111308,2420.9,2419.3,3.98967726]
[1769936732897,2.43185547,2421.6,2419.3,3.98967726]
[1769936732898,3.69111308,2420.3,2419.3,3.98967726]
[1769936733295,3.89791308,2420.6,2419.3,3.98967726]
[1769936733595,0.20691,2420.5,2419.3,3.98967726]
[1769936733795,3.69111308,2420.4,2419.3,3.98967726]
[1769936734297,0.20691,2420.1,2419.3,3.98967726]
[1769936734595,3.69111308,2420.2,2419.3,3.98967726]
[1769936734792,0.20691,2420.0,2419.3,3.98967726]
[1769936735187,0.20691,2420.0,2419.0,3.98545884]
[1769936735188,0.20691,2419.6,2419.0,3.98545884]
[1769936735395,3.69111308,2420.3,2419.0,3.98545884]
[1769936735593,0.20691,2420.2,2419.0,3.98545884]
[1769936735998,0.20691,2419.9,2419.0,3.98545884]
[1769936736198,0.00401121,2419.9,2419.0,3.98966355]
[1769936736393,0.20691,2419.8,2419.0,3.98966355]
[1769936736793,0.20691,2419.7,2419.0,3.98966355]
[1769936736995,0.20691,2419.8,2419.0,3.98966355]
[1769936737394,0.20691,2419.7,2419.0,3.98966355]
[1769936737591,0.20691,2419.6,2419.0,3.98966355]
[1769936737795,0.20691,2419.5,2418.7,3.71436876]
[1769936737997,3.97939187,2419.7,2418.7,3.71436876]
[1769936738195,0.20691,2419.6,2418.7,3.71436876]
[1769936738702,3.97939187,2419.7,2418.7,3.71436876]
[1769936738902,0.20691,2419.4,2418.7,3.71847335]
[1769936739301,0.20691,2419.2,2418.7,3.71847335]
[1769936739502,0.20691,2419.4,2418.7,3.71847335]
[1769936740002,0.20691,2419.2,2418.7,3.71847335]
[1769936740301,0.20691,2419.4,2418.7,3.71847335]
[1769936740703,0.20691,2419.1,2418.4,3.71436876]
[1769936740903,3.97939187,2419.2,2418.4,3.71436876]
[1769936741104,0.20691,2419.1,2418.4,3.71436876]
[1769936741504,0.20691,2419.0,2418.4,3.71436876]
[1769936741807,3.98340308,2419.9,2418.4,3.71917088]
[1769936742108,0.20691,2419.8,2418.4,3.71917088]
[1769936742502,0.20691,2419.7,2418.4,3.71917088]
[1769936742703,0.20691,2419.8,2418.4,3.71917088]
[1769936742905,3.98340308,2419.9,2418.4,3.71917088]
[1769936743301,4.18630187,2419.8,2418.4,3.71917088]
[1769936743805,0.20691,2419.7,2418.4,3.71917088]
[1769936744005,4.19640936,2419.7,2418.4,3.71917088]
[1769936744202,0.20691,2419.6,2418.4,3.71917088]
[1769936745207,0.00401121,2419.9,2418.4,3.71917088]
[1769936747712,0.20691,2419.6,2418.4,3.71917088]
[1769936748011,4.19640936,2419.6,2418.4,3.71917088]
[1769936748214,0.20691,2419.4,2418.4,3.71917088]
[1769936748608,0.20691,2419.3,2418.4,3.71917088]
[1769936748812,0.20691,2419.5,2418.4,3.71917088]
[1769936749012,0.20691,2419.6,2418.4,3.71917088]
[1769936749516,0.20691,2419.5,2418.4,3.71917088]
[1769936749711,0.20691,2419.6,2418.4,3.71917088]
[1769936750108,0.20691,2419.5,2418.4,3.71917088]
[1769936750407,0.20691,2419.6,2418.4,3.71917088]
[1769936750914,0.20691,2419.4,2418.4,3.71917088]
[1769936751110,3.98949936,2419.6,2418.4,3.71917088]
[1769936751413,4.19640936,2419.5,2418.4,3.71917088]
[1769936751612,0.20691,2419.4,2418.4,3.71917088]
[1769936751812,0.20691,2419.2,2418.4,3.71917088]
[1769936752012,0.20691,2419.3,2418.4,3.71917088]
[1769936752310,0.20691,2419.2,2418.4,3.71917088]